[Event "GER-ch Youth U10W 2020"]
[Site "Willingen"]
[Date "2020.10.28"]
[Round "2.18"]
[White "Heidtkamp, Anna"]
[Black "Zimmermann, Lilly Marie"]
[Result "0-1"]
[ECO "C50"]
[WhiteElo "1078"]
[BlackElo "851"]
[Annotator "NA RC"]
[PlyCount "46"]
[EventDate "2020.10.27"]
[EventType "swiss"]
[EventRounds "7"]
[EventCountry "GER"]
[SourceTitle "playchess.com"]
[Source "ChessBase"]
[SourceQuality "1"]
[TimeControl "40/4500+30:900+30"]

1. e4 {[%emt 0:00:00]} e5 2. Nf3 Nc6 {[%emt 0:00:20]} 3. Bc4 {[%emt 0:00:11]} Nf6 {[%emt 0:00:08]} 4. Nc3 {[%emt 0:00:15]} Bc5 {[%emt 0:00:16]} 5. O-O {[%emt 0:00:17]} d6 {[%emt 0:00:25]} 6. h3 {[%emt 0:00:21]} O-O {[%emt 0:00:49]} 7. d3 {[%emt 0:00:25]} h6 {[%emt 0:00:11]} 8. Re1 {[%emt 0:00:16]} Nh5 {[%emt 0:00:23]} 9. Be3 {[%emt 0:01:01]} Qf6 {[%emt 0:00:34]} 10. Bxc5 {[%emt 0:00:25]} dxc5 {[%emt 0:00:08]} 11. Qd2 {[%emt 0:00:59]} Qg6 {[%emt 0:00:22]} 12. Rad1 {[%emt 0:00:55]} Bxh3 {[%emt 0:00:22]} 13. Nh4 {[%emt 0:00:15]} Qg4 {[%emt 0:01:08]} 14. g3 {[%emt 0:00:29]} g5 {[%emt 0:00:19]} 15. Nf5 {[%emt 0:00:47]} Qf3 {[%emt 0:00:31]} 16. Ne3 {[%emt 0:00:13]} Nf4 {[%emt 0:03:03]} 17. gxf4 {[%emt 0:00:00]} exf4 {[%emt 0:00:20]} 18. a3 {[%emt 0:00:27]} fxe3 {[%emt 0:00:23]} 19. fxe3 {[%emt 0:00:09]} Ne5 {[%emt 0:01:05]} 20. Qh2 {[%emt 0:01:13]} Ng4 {[%emt 0:00:32]} 21. Rd2 {[%emt 0:07:48]} Nxh2 {[%emt 0:00:22]} 22. Rxh2 {[%emt 0:00:14]} Qg3+ {[%emt 0:00:38]} 23. Kh1 {[%emt 0:00:35]} Qxe1# {[%emt 0:00:22]} 0-1

[Event "GER-ch Youth U10W 2020"]
[Site "Willingen"]
[Date "2020.10.28"]
[Round "2.19"]
[White "Margaryan, Mari"]
[Black "Blaufuß, Lena"]
[Result "0-1"]
[ECO "C54"]
[WhiteElo "690"]
[BlackElo "1073"]
[Annotator "NA RC"]
[PlyCount "46"]
[EventDate "2020.10.27"]
[EventType "swiss"]
[EventRounds "7"]
[EventCountry "GER"]
[SourceTitle "playchess.com"]
[Source "ChessBase"]
[SourceQuality "1"]
[TimeControl "40/4500+30:900+30"]

1. e4 {[%emt 0:00:00]} e5 {[%emt 0:00:00]} 2. Nf3 {[%emt 0:00:00]} Nc6 {[%emt 0:00:08]} 3. Bc4 {[%emt 0:00:00]} Bc5 {[%emt 0:01:10]} 4. c3 {[%emt 0:00:00]} Nf6 {[%emt 0:00:39]} 5. d3 {[%emt 0:00:20]} O-O {[%emt 0:00:20]} 6. O-O {[%emt 0:00:08]} d6 {[%emt 0:00:20]} 7. Be3 {[%emt 0:00:08]} Bg4 {[%emt 0:00:43]} 8. h3 {[%emt 0:00:14]} Bh5 {[%emt 0:00:33]} 9. g4 {[%emt 0:00:13]} Bg6 {[%emt 0:00:30]} 10. Nbd2 {[%emt 0:00:48]} Ne7 {[%emt 0:02:04]} 11. Nb3 {[%emt 0:00:20]} Bb6 {[%emt 0:01:17]} 12. d4 {[%emt 0:00:44]} h5 {[%emt 0:06:04]} 13. gxh5 {[%emt 0:00:31]} Bxh5 {[%emt 0:01:04]} 14. dxe5 {[%emt 0:00:30]} dxe5 {[%emt 0:01:11]} 15. Nxe5 {[%emt 0:00:48]} Bxd1 16. Rfxd1 Qc8 {[%emt 0:03:10]} 17. Kg2 {[%emt 0:01:04]} Nxe4 {[%emt 0:01:10]} 18. Rh1 {[%emt 0:00:22]} Qf5 {[%emt 0:01:41]} 19. h4 Qxe5 {[%emt 0:01:01]} 20. Bd4 {[%emt 0:01:19]} Qf4 {[%emt 0:01:29]} 21. Be3 {[%emt 0:00:31]} Bxe3 {[%emt 0:00:50]} 22. fxe3 {[%emt 0:00:36]} Qf2+ {[%emt 0:01:06]} 23. Kh3 {[%emt 0:00:21]} Qg3# {[%emt 0:00:39]} 0-1

[Event "GER-ch Youth U10W 2020"]
[Site "Willingen"]
[Date "2020.10.28"]
[Round "2.20"]
[White "Abram, Kristina-Maria"]
[Black "Amrhein, Yana"]
[Result "1-0"]
[ECO "B00"]
[WhiteElo "1038"]
[BlackElo "747"]
[Annotator "NA RC"]
[PlyCount "75"]
[EventDate "2020.10.27"]
[EventType "swiss"]
[EventRounds "7"]
[EventCountry "GER"]
[SourceTitle "playchess.com"]
[Source "ChessBase"]
[SourceQuality "1"]
[TimeControl "40/4500+30:900+30"]

1. e4 {[%emt 0:00:00]} d6 {[%emt 0:00:00]} 2. Bc4 {[%emt 0:00:30]} Nf6 {[%emt 0:00:14]} 3. d3 {[%emt 0:00:16]} g6 {[%emt 0:00:13]} 4. Nf3 {[%emt 0:00:46]} Bg7 {[%emt 0:00:10]} 5. c3 {[%emt 0:00:41]} O-O {[%emt 0:00:59]} 6. O-O {[%emt 0:00:40]} b6 {[%emt 0:00:49]} 7. Bg5 {[%emt 0:01:08]} h6 {[%emt 0:00:36]} 8. Be3 {[%emt 0:00:40]} Bb7 {[%emt 0:00:17]} 9. Qb3 {[%emt 0:00:47]} Nc6 {[%emt 0:02:01]} 10. Qc2 {[%emt 0:02:04]} Na5 {[%emt 0:00:34]} 11. Bb3 {[%emt 0:00:34]} Nxb3 12. axb3 {[%emt 0:00:34]} d5 {[%emt 0:00:56]} 13. e5 {[%emt 0:02:18]} Ng4 {[%emt 0:00:25]} 14. Bf4 {[%emt 0:01:16]} Qd7 {[%emt 0:01:13]} 15. h3 {[%emt 0:01:46]} Qf5 {[%emt 0:00:50]} 16. Qd2 {[%emt 0:00:44]} g5 {[%emt 0:01:08]} 17. Bg3 {[%emt 0:03:21]} Bc8 {[%emt 0:03:54]} 18. hxg4 {[%emt 0:00:28]} Qxg4 {[%emt 0:00:18]} 19. d4 {[%emt 0:02:48]} Bf5 {[%emt 0:00:59]} 20. Nh2 {[%emt 0:02:02]} Qh5 {[%emt 0:00:18]} 21. c4 {[%emt 0:01:48]} dxc4 {[%emt 0:00:41]} 22. bxc4 {[%emt 0:00:14]} g4 {[%emt 0:01:20]} 23. f3 {[%emt 0:01:20]} Rad8 {[%emt 0:00:45]} 24. Rxa7 {[%emt 0:01:29]} Rd7 {[%emt 0:00:24]} 25. Qf4 {[%emt 0:02:02]} Qg6 {[%emt 0:00:18]} 26. Nd2 {[%emt 0:00:33]} c5 {[%emt 0:00:50]} 27. Rxd7 {[%emt 0:00:24]} Bxd7 {[%emt 0:00:06]} 28. dxc5 {[%emt 0:00:39]} bxc5 {[%emt 0:00:07]} 29. fxg4 {[%emt 0:00:24]} Rd8 {[%emt 0:00:10]} 30. Ne4 {[%emt 0:00:32]} Bc6 {[%emt 0:00:18]} 31. Nxc5 {[%emt 0:01:51]} Bf8 {[%emt 0:00:50]} 32. Nb3 {[%emt 0:02:21]} Qd3 {[%emt 0:00:25]} 33. Nc1 {[%emt 0:00:50]} Qd7 {[%emt 0:00:34]} 34. Qxf7+ {[%emt 0:00:30]} Kh8 {[%emt 0:04:17]} 35. e6 {[%emt 0:00:54]} Qd4+ {[%emt 0:00:28]} 36. Bf2 {[%emt 0:00:30]} Bxg2 {[%emt 0:01:55]} 37. Bxd4+ {[%emt 0:00:42]} Bg7 38. Qxg7# 1-0

[Event "GER-ch Youth U10W 2020"]
[Site "Willingen"]
[Date "2020.10.28"]
[Round "3.1"]
[White "Sickmann, Lisa"]
[Black "Huber, Laura"]
[Result "1-0"]
[ECO "C77"]
[WhiteElo "1510"]
[BlackElo "1249"]
[Annotator "NA"]
[PlyCount "81"]
[EventDate "2020.10.27"]
[EventType "swiss"]
[EventRounds "7"]
[EventCountry "GER"]
[SourceTitle "playchess.com"]
[Source "ChessBase"]
[SourceQuality "1"]
[TimeControl "40/4500+30:900+30"]

1. e4 {[%emt 0:00:00]} e5 {[%emt 0:00:00]} 2. Nf3 {[%emt 0:00:00]} Nc6 {[%emt 0:00:00]} 3. Bb5 {[%emt 0:00:02]} a6 {[%emt 0:00:00]} 4. Ba4 {[%emt 0:00:07]} Nf6 {[%emt 0:00:21]} 5. d4 {[%emt 0:00:09]} exd4 {[%emt 0:00:50]} 6. O-O {[%emt 0:00:08]} b5 {[%emt 0:00:55]} 7. Bb3 {[%emt 0:00:07]} d6 {[%emt 0:11:55]} 8. Bd5 {[%emt 0:02:20]} Bb7 {[%emt 0:08:03]} 9. Nxd4 {[%emt 0:00:46]} Nxd5 {[%emt 0:04:29]} 10. exd5 {[%emt 0:00:13]} Ne7 {[%emt 0:01:31]} 11. Re1 {[%emt 0:14:16]} g6 {[%emt 0:09:45]} 12. Bg5 {[%emt 0:02:18]} h6 {[%emt 0:04:18]} 13. Bf6 Rh7 {[%emt 0:01:25]} 14. Nc6 {[%emt 0:04:35]} Bxc6 {[%emt 0:00:16]} 15. dxc6 {[%emt 0:00:04]} Qc8 {[%emt 0:04:35]} 16. Nc3 {[%emt 0:01:57]} Rb8 {[%emt 0:12:06]} 17. Bxe7 {[%emt 0:01:44]} Bxe7 {[%emt 0:01:21]} 18. Nd5 {[%emt 0:00:06]} Qd8 {[%emt 0:01:41]} 19. Nf6+ {[%emt 0:01:43]} Kf8 {[%emt 0:00:25]} 20. Nxh7+ {[%emt 0:00:05]} Kg8 {[%emt 0:00:28]} 21. Qe2 {[%emt 0:00:06]} Kxh7 {[%emt 0:00:55]} 22. Qxe7 {[%emt 0:00:05]} Qxe7 {[%emt 0:00:16]} 23. Rxe7 {[%emt 0:00:02]} Rc8 {[%emt 0:00:11]} 24. Rxf7+ {[%emt 0:00:08]} Kg8 {[%emt 0:00:03]} 25. Re7 {[%emt 0:00:21]} Kh8 {[%emt 0:01:13]} 26. Rae1 {[%emt 0:00:08]} Kg8 {[%emt 0:00:18]} 27. Re8+ {[%emt 0:00:06]} Rxe8 {[%emt 0:00:06]} 28. Rxe8+ {[%emt 0:00:02]} Kf7 {[%emt 0:00:08]} 29. Rc8 {[%emt 0:00:03]} Ke7 {[%emt 0:00:07]} 30. Rxc7+ {[%emt 0:00:03]} Kd8 {[%emt 0:00:15]} 31. Rd7+ {[%emt 0:00:03]} Kc8 {[%emt 0:00:10]} 32. Kf1 {[%emt 0:00:06]} a5 {[%emt 0:00:09]} 33. Ke2 {[%emt 0:00:03]} a4 {[%emt 0:00:16]} 34. Kd3 {[%emt 0:00:04]} g5 {[%emt 0:00:33]} 35. Kd4 {[%emt 0:00:04]} b4 {[%emt 0:00:09]} 36. Kd5 {[%emt 0:00:05]} b3 {[%emt 0:00:55]} 37. axb3 {[%emt 0:00:07]} axb3 38. cxb3 {[%emt 0:00:04]} h5 {[%emt 0:00:09]} 39. Kxd6 {[%emt 0:00:09]} g4 {[%emt 0:00:07]} 40. Rf7 {[%emt 0:00:06]} Kb8 {[%emt 0:00:15]} 41. c7+ {[%emt 0:15:07]} 1-0

[Event "GER-ch Youth U10W 2020"]
[Site "Willingen"]
[Date "2020.10.28"]
[Round "3.2"]
[White "Will, Elina"]
[Black "Bauer, Laura Sophie"]
[Result "0-1"]
[ECO "B50"]
[WhiteElo "1149"]
[BlackElo "1287"]
[Annotator "NA"]
[PlyCount "104"]
[EventDate "2020.10.27"]
[EventType "swiss"]
[EventRounds "7"]
[EventCountry "GER"]
[SourceTitle "playchess.com"]
[Source "ChessBase"]
[SourceQuality "1"]
[TimeControl "40/4500+30:900+30"]

1. e4 {[%emt 0:00:00]} c5 {[%emt 0:00:00]} 2. Nf3 {[%emt 0:00:00]} d6 {[%emt 0:00:00]} 3. c3 {[%emt 0:00:09]} Nf6 {[%emt 0:00:58]} 4. h3 {[%emt 0:01:11]} Nc6 {[%emt 0:00:51]} 5. d4 {[%emt 0:00:14]} cxd4 {[%emt 0:03:18]} 6. cxd4 {[%emt 0:00:08]} Nxe4 {[%emt 0:00:25]} 7. d5 {[%emt 0:00:08]} Qb6 {[%emt 0:01:27]} 8. Qe2 {[%emt 0:01:13]} Qb4+ {[%emt 0:04:40]} 9. Nfd2 {[%emt 0:01:45]} Nxd2 {[%emt 0:03:07]} 10. Bxd2 {[%emt 0:00:55]} Qxb2 {[%emt 0:00:57]} 11. Bc3 {[%emt 0:00:08]} Qc1+ {[%emt 0:01:00]} 12. Qd1 {[%emt 0:00:38]} Qxd1+ {[%emt 0:00:16]} 13. Kxd1 {[%emt 0:00:08]} Ne5 {[%emt 0:00:21]} 14. h4 {[%emt 0:04:25]} Bf5 {[%emt 0:01:36]} 15. h5 {[%emt 0:02:35]} Rc8 {[%emt 0:01:30]} 16. Bd4 {[%emt 0:00:37]} b6 {[%emt 0:01:05]} 17. h6 {[%emt 0:00:18]} f6 {[%emt 0:02:11]} 18. hxg7 {[%emt 0:02:04]} Bxg7 {[%emt 0:00:21]} 19. Be2 {[%emt 0:00:32]} Be4 {[%emt 0:00:49]} 20. Nc3 {[%emt 0:02:26]} Bg6 {[%emt 0:03:02]} 21. f4 {[%emt 0:01:26]} Nd3 {[%emt 0:01:54]} 22. g3 {[%emt 0:01:15]} e5 {[%emt 0:01:38]} 23. Kd2 {[%emt 0:02:12]} exd4 {[%emt 0:00:26]} 24. Bxd3 {[%emt 0:01:29]} dxc3+ {[%emt 0:00:14]} 25. Kc2 {[%emt 0:00:09]} Bxd3+ {[%emt 0:00:19]} 26. Kxd3 {[%emt 0:00:09]} c2 {[%emt 0:00:05]} 27. Rac1 {[%emt 0:00:16]} f5 {[%emt 0:00:07]} 28. Rxc2 {[%emt 0:00:30]} Rxc2 {[%emt 0:00:12]} 29. Kxc2 {[%emt 0:00:17]} Kd7 {[%emt 0:00:48]} 30. Kb3 {[%emt 0:00:09]} h5 {[%emt 0:00:45]} 31. a4 {[%emt 0:00:26]} a5 {[%emt 0:00:42]} 32. Kc4 Bf6 33. Kb5 {[%emt 0:04:41]} h4 {[%emt 0:01:11]} 34. gxh4 {[%emt 0:00:26]} Rxh4 {[%emt 0:00:05]} 35. Rxh4 Bxh4 36. Kxb6 {[%emt 0:00:56]} Bg3 {[%emt 0:00:45]} 37. Kxa5 {[%emt 0:00:52]} Bxf4 {[%emt 0:00:10]} 38. Kb6 Be3+ 39. Kb5 {[%emt 0:02:46]} f4 {[%emt 0:00:37]} 40. Kc4 {[%emt 0:00:05]} Kc7 {[%emt 0:00:27]} 41. a5 {[%emt 0:17:43]} f3 {[%emt 0:15:29]} 42. Kd3 {[%emt 0:00:11]} f2 {[%emt 0:00:04]} 43. Ke2 {[%emt 0:00:16]} Kb7 {[%emt 0:00:04]} 44. a6+ {[%emt 0:00:48]} Kxa6 {[%emt 0:00:13]} 45. Kf1 {[%emt 0:00:31]} Kb5 {[%emt 0:00:12]} 46. Ke2 {[%emt 0:00:10]} Kc4 {[%emt 0:00:21]} 47. Kf1 {[%emt 0:00:09]} Kd3 {[%emt 0:00:15]} 48. Kg2 {[%emt 0:00:13]} Ke2 {[%emt 0:00:07]} 49. Kg3 {[%emt 0:00:14]} f1=Q {[%emt 0:00:14]} 50. Kg4 {[%emt 0:00:11]} Qf3+ {[%emt 0:00:27]} 51. Kh4 {[%emt 0:00:20]} Qg2 {[%emt 0:00:10]} 52. Kh5 {[%emt 0:00:11]} Qg5# {[%emt 0:00:05]} 0-1

[Event "GER-ch Youth U10W 2020"]
[Site "Willingen"]
[Date "2020.10.28"]
[Round "3.3"]
[White "Czäczine, Paula"]
[Black "Schube, Theresa"]
[Result "1/2-1/2"]
[ECO "C45"]
[WhiteElo "1127"]
[BlackElo "1131"]
[Annotator "NA"]
[PlyCount "97"]
[EventDate "2020.10.27"]
[EventType "swiss"]
[EventRounds "7"]
[EventCountry "GER"]
[SourceTitle "playchess.com"]
[Source "ChessBase"]
[SourceQuality "1"]
[TimeControl "40/4500+30:900+30"]

1. e4 {[%emt 0:00:00]} e5 {[%emt 0:00:00]} 2. Nf3 {[%emt 0:00:00]} Nc6 {[%emt 0:00:16]} 3. d4 {[%emt 0:00:00]} exd4 {[%emt 0:00:34]} 4. Nxd4 {[%emt 0:00:10]} Nf6 {[%emt 0:00:53]} 5. Nxc6 {[%emt 0:00:15]} bxc6 {[%emt 0:00:44]} 6. e5 {[%emt 0:00:17]} Qe7 {[%emt 0:00:43]} 7. Qe2 {[%emt 0:00:17]} Nd5 {[%emt 0:00:59]} 8. c4 {[%emt 0:00:31]} Ba6 {[%emt 0:01:03]} 9. b3 {[%emt 0:00:29]} g6 {[%emt 0:01:25]} 10. f4 {[%emt 0:01:34]} Bg7 {[%emt 0:04:29]} 11. Qf2 {[%emt 0:01:11]} Nb6 {[%emt 0:00:59]} 12. Ba3 {[%emt 0:01:48]} Qe6 {[%emt 0:02:41]} 13. Nc3 {[%emt 0:10:09]} d6 {[%emt 0:02:46]} 14. Be2 {[%emt 0:08:32]} O-O {[%emt 0:09:22]} 15. O-O {[%emt 0:04:26]} Rfd8 {[%emt 0:10:09]} 16. Bf3 {[%emt 0:09:03]} d5 {[%emt 0:05:43]} 17. cxd5 {[%emt 0:07:05]} cxd5 {[%emt 0:01:24]} 18. Rfd1 {[%emt 0:00:59]} Rac8 {[%emt 0:05:49]} 19. h3 {[%emt 0:02:22]} Bf8 {[%emt 0:03:56]} 20. Bg4 {[%emt 0:03:21]} Qc6 {[%emt 0:02:38]} 21. Bxc8 {[%emt 0:01:50]} Bxa3 {[%emt 0:01:42]} 22. Bxa6 {[%emt 0:06:38]} Bc5 {[%emt 0:05:33]} 23. Rd4 {[%emt 0:00:33]} Nd7 {[%emt 0:01:12]} 24. Nxd5 {[%emt 0:05:35]} Qxa6 {[%emt 0:02:28]} 25. b4 {[%emt 0:02:58]} Bxd4 {[%emt 0:03:14]} 26. Qxd4 {[%emt 0:00:14]} Qb7 {[%emt 0:04:47]} 27. Nf6+ {[%emt 0:01:42]} Kf8 {[%emt 0:00:51]} 28. Nxd7+ {[%emt 0:00:59]} Ke7 {[%emt 0:00:54]} 29. Nc5 {[%emt 0:01:12]} Rxd4 {[%emt 0:01:38]} 30. Nxb7 {[%emt 0:00:12]} Rxb4 {[%emt 0:00:51]} 31. Nc5 {[%emt 0:00:39]} Rxf4 {[%emt 0:00:38]} 32. Re1 {[%emt 0:01:48]} Rc4 {[%emt 0:00:42]} 33. Na6 {[%emt 0:01:31]} Rc6 {[%emt 0:01:59]} 34. Nb4 {[%emt 0:00:36]} Rc4 {[%emt 0:01:02]} 35. Nd5+ {[%emt 0:01:02]} Ke6 {[%emt 0:01:08]} 36. Ne3 {[%emt 0:00:39]} Ra4 {[%emt 0:00:57]} 37. Re2 {[%emt 0:00:47]} Re4 {[%emt 0:01:24]} 38. Kf2 {[%emt 0:00:19]} Rxe5 {[%emt 0:00:38]} 39. Nc4 {[%emt 0:00:19]} Rxe2+ {[%emt 0:00:15]} 40. Kxe2 {[%emt 0:00:06]} Kd5 {[%emt 0:00:17]} 41. Kd3 {[%emt 0:15:30]} f5 {[%emt 0:15:36]} 42. Na3 {[%emt 0:01:57]} c6 {[%emt 0:00:31]} 43. Nc2 {[%emt 0:01:01]} f4 {[%emt 0:00:33]} 44. Nb4+ {[%emt 0:00:25]} Kc5 {[%emt 0:00:42]} 45. Na6+ {[%emt 0:01:03]} Kb6 {[%emt 0:00:59]} 46. Nb4 {[%emt 0:00:11]} Kc5 {[%emt 0:00:14]} 47. Na6+ {[%emt 0:03:36]} Kb6 {[%emt 0:00:35]} 48. Nb4 {[%emt 0:00:30]} Kc5 {[%emt 0:00:08]} 49. Na6+ {[%emt 0:00:33]} 1/2-1/2

[Event "GER-ch Youth U10W 2020"]
[Site "Willingen"]
[Date "2020.10.28"]
[Round "3.4"]
[White "Woiteck, Sophia"]
[Black "Meier, Viktoria"]
[Result "1-0"]
[ECO "B13"]
[WhiteElo "1065"]
[BlackElo "1316"]
[Annotator "NA"]
[PlyCount "69"]
[EventDate "2020.10.27"]
[EventType "swiss"]
[EventRounds "7"]
[EventCountry "GER"]
[SourceTitle "playchess.com"]
[Source "ChessBase"]
[SourceQuality "1"]
[TimeControl "40/4500+30:900+30"]

1. e4 {[%emt 0:00:00]} c6 {[%emt 0:00:00]} 2. d4 {[%emt 0:00:00]} d5 {[%emt 0:00:00]} 3. exd5 {[%emt 0:00:00]} cxd5 {[%emt 0:00:00]} 4. Bd3 {[%emt 0:00:01]} Nc6 {[%emt 0:00:01]} 5. c3 {[%emt 0:00:08]} Nf6 {[%emt 0:00:12]} 6. h3 {[%emt 0:00:10]} e6 {[%emt 0:00:07]} 7. Nf3 {[%emt 0:00:14]} Bd6 {[%emt 0:00:10]} 8. O-O {[%emt 0:00:24]} Bd7 {[%emt 0:00:24]} 9. Re1 {[%emt 0:00:11]} Qc7 {[%emt 0:00:15]} 10. Qe2 {[%emt 0:00:45]} O-O-O {[%emt 0:01:14]} 11. b4 {[%emt 0:00:17]} Kb8 {[%emt 0:02:04]} 12. Ne5 {[%emt 0:01:43]} Bc8 {[%emt 0:01:06]} 13. Bb5 {[%emt 0:02:58]} Bxe5 {[%emt 0:01:17]} 14. dxe5 {[%emt 0:04:03]} Nd7 {[%emt 0:01:16]} 15. Bf4 {[%emt 0:01:29]} h6 {[%emt 0:01:27]} 16. a4 {[%emt 0:00:37]} g5 {[%emt 0:00:20]} 17. Bg3 {[%emt 0:00:48]} d4 {[%emt 0:00:42]} 18. Qe4 {[%emt 0:06:41]} dxc3 {[%emt 0:01:05]} 19. Nxc3 {[%emt 0:00:19]} f5 {[%emt 0:01:24]} 20. exf6 {[%emt 0:00:25]} e5 {[%emt 0:00:43]} 21. Bxc6 {[%emt 0:11:45]} bxc6 {[%emt 0:01:53]} 22. b5 {[%emt 0:02:24]} Bb7 {[%emt 0:01:13]} 23. bxc6 {[%emt 0:01:20]} Bxc6 {[%emt 0:01:01]} 24. Rab1+ {[%emt 0:01:36]} Kc8 {[%emt 0:02:11]} 25. Qc4 {[%emt 0:02:17]} Nb6 {[%emt 0:01:39]} 26. Qa6+ {[%emt 0:01:42]} Bb7 {[%emt 0:01:01]} 27. Qxa7 {[%emt 0:01:46]} Qc6 {[%emt 0:01:06]} 28. f3 {[%emt 0:01:09]} Rh7 {[%emt 0:02:01]} 29. Qxb6 {[%emt 0:01:34]} Qxc3 {[%emt 0:02:15]} 30. Rbc1 {[%emt 0:00:35]} Qxc1 {[%emt 0:00:23]} 31. Rxc1+ {[%emt 0:00:11]} Kd7 {[%emt 0:01:16]} 32. Qxb7+ {[%emt 0:00:10]} Ke8 {[%emt 0:00:14]} 33. Qxh7 {[%emt 0:00:13]} Rd7 {[%emt 0:00:15]} 34. Rc8+ {[%emt 0:00:10]} Rd8 {[%emt 0:00:06]} 35. Qe7# 1-0

[Event "GER-ch Youth U10W 2020"]
[Site "Willingen"]
[Date "2020.10.28"]
[Round "3.6"]
[White "Yan, Jenny"]
[Black "Neininger, Sarah"]
[Result "0-1"]
[ECO "B34"]
[WhiteElo "952"]
[BlackElo "1469"]
[Annotator "NA"]
[PlyCount "126"]
[EventDate "2020.10.27"]
[EventType "swiss"]
[EventRounds "7"]
[EventCountry "GER"]
[SourceTitle "playchess.com"]
[Source "ChessBase"]
[SourceQuality "1"]
[TimeControl "40/4500+30:900+30"]

1. e4 {[%emt 0:00:00]} c5 {[%emt 0:00:00]} 2. Nf3 {[%emt 0:00:00]} Nc6 {[%emt 0:00:00]} 3. d4 {[%emt 0:00:02]} cxd4 {[%emt 0:00:00]} 4. Nxd4 {[%emt 0:00:15]} Nf6 {[%emt 0:00:01]} 5. Nc3 {[%emt 0:00:27]} e5 {[%emt 0:00:16]} 6. Ndb5 {[%emt 0:00:21]} d6 {[%emt 0:00:09]} 7. Nd5 {[%emt 0:00:35]} Nxd5 {[%emt 0:00:19]} 8. exd5 {[%emt 0:00:45]} Nb8 {[%emt 0:00:24]} 9. a4 {[%emt 0:00:45]} Be7 {[%emt 0:00:28]} 10. Be2 {[%emt 0:01:38]} a6 {[%emt 0:00:26]} 11. Nc3 {[%emt 0:01:11]} O-O {[%emt 0:00:35]} 12. O-O {[%emt 0:01:21]} Nd7 {[%emt 0:00:19]} 13. Be3 f5 {[%emt 0:00:23]} 14. Qd3 {[%emt 0:03:51]} e4 {[%emt 0:00:39]} 15. Qd2 {[%emt 0:01:49]} Bf6 {[%emt 0:00:29]} 16. Bf4 {[%emt 0:01:23]} Ne5 {[%emt 0:00:34]} 17. f3 {[%emt 0:02:17]} Bd7 {[%emt 0:01:50]} 18. fxe4 {[%emt 0:00:53]} fxe4 {[%emt 0:03:53]} 19. Nxe4 {[%emt 0:00:35]} Bf5 {[%emt 0:00:40]} 20. Nxf6+ {[%emt 0:00:45]} Rxf6 {[%emt 0:00:37]} 21. Bg5 {[%emt 0:00:30]} Qb6+ {[%emt 0:00:24]} 22. Qe3 {[%emt 0:01:36]} Qxe3+ {[%emt 0:00:24]} 23. Bxe3 {[%emt 0:00:13]} Bxc2 {[%emt 0:00:16]} 24. Rxf6 {[%emt 0:01:00]} gxf6 {[%emt 0:00:11]} 25. b4 {[%emt 0:01:48]} Bb3 {[%emt 0:03:23]} 26. a5 {[%emt 0:00:46]} Bxd5 {[%emt 0:00:32]} 27. Rd1 {[%emt 0:00:36]} Bc4 {[%emt 0:00:40]} 28. Bxc4+ {[%emt 0:01:14]} Nxc4 {[%emt 0:00:08]} 29. Bf4 {[%emt 0:00:31]} Rd8 {[%emt 0:00:51]} 30. Rd4 {[%emt 0:01:19]} Ne5 {[%emt 0:00:44]} 31. Kf2 {[%emt 0:01:11]} Kf7 {[%emt 0:01:06]} 32. h3 {[%emt 0:01:00]} h5 {[%emt 0:01:29]} 33. Rd5 {[%emt 0:01:31]} Ke6 {[%emt 0:00:41]} 34. Rd2 {[%emt 0:01:31]} d5 {[%emt 0:00:36]} 35. Ke3 {[%emt 0:02:17]} Nc4+ {[%emt 0:00:32]} 36. Kd3 {[%emt 0:00:24]} Nxd2 {[%emt 0:00:12]} 37. Bxd2 {[%emt 0:00:10]} Ke5 {[%emt 0:00:22]} 38. Bc3+ {[%emt 0:00:21]} d4 {[%emt 0:00:17]} 39. Be1 {[%emt 0:00:28]} f5 {[%emt 0:01:17]} 40. Bf2 {[%emt 0:00:52]} Rg8 {[%emt 0:04:02]} 41. g3 {[%emt 0:16:37]} Kd5 {[%emt 0:16:18]} 42. h4 {[%emt 0:01:17]} Rg4 {[%emt 0:01:50]} 43. Be1 {[%emt 0:00:46]} f4 {[%emt 0:00:50]} 44. gxf4 {[%emt 0:00:43]} Rxf4 {[%emt 0:00:12]} 45. Bd2 {[%emt 0:02:18]} Rxh4 {[%emt 0:00:59]} 46. Be1 {[%emt 0:02:13]} Rh3+ {[%emt 0:00:40]} 47. Kd2 {[%emt 0:01:01]} d3 {[%emt 0:00:30]} 48. Bf2 {[%emt 0:00:59]} Rh2 {[%emt 0:00:35]} 49. Kxd3 {[%emt 0:01:00]} Rxf2 {[%emt 0:00:13]} 50. Ke3 {[%emt 0:00:19]} Rb2 {[%emt 0:00:26]} 51. Kd3 {[%emt 0:00:19]} Rxb4 {[%emt 0:00:10]} 52. Kc3 {[%emt 0:00:32]} Rh4 {[%emt 0:00:17]} 53. Kd3 {[%emt 0:00:30]} Rh3+ {[%emt 0:00:04]} 54. Ke2 {[%emt 0:00:24]} Kd4 {[%emt 0:00:08]} 55. Kf2 {[%emt 0:00:43]} Ke4 {[%emt 0:00:16]} 56. Kg2 {[%emt 0:00:22]} Ra3 {[%emt 0:00:05]} 57. Kf2 {[%emt 0:00:15]} Rb3 {[%emt 0:00:09]} 58. Kg2 {[%emt 0:00:34]} Kf4 {[%emt 0:00:03]} 59. Kh2 {[%emt 0:00:20]} Kg4 {[%emt 0:00:06]} 60. Kg2 {[%emt 0:00:29]} Rb2+ {[%emt 0:00:06]} 61. Kg1 {[%emt 0:00:18]} Kf3 {[%emt 0:00:17]} 62. Kh1 {[%emt 0:00:14]} Kg3 {[%emt 0:00:30]} 63. Kg1 {[%emt 0:00:09]} Rb1# 0-1

[Event "GER-ch Youth U10W 2020"]
[Site "Willingen"]
[Date "2020.10.28"]
[Round "3.7"]
[White "Trunz, Tamila"]
[Black "Abram, Kristina-Maria"]
[Result "1-0"]
[ECO "C70"]
[WhiteElo "1379"]
[BlackElo "1038"]
[Annotator "NA"]
[PlyCount "55"]
[EventDate "2020.10.27"]
[EventType "swiss"]
[EventRounds "7"]
[EventCountry "GER"]
[SourceTitle "playchess.com"]
[Source "ChessBase"]
[SourceQuality "1"]
[TimeControl "40/4500+30:900+30"]

1. e4 {[%emt 0:00:00]} e5 {[%emt 0:00:00]} 2. Nf3 {[%emt 0:00:00]} Nc6 {[%emt 0:00:00]} 3. Bb5 {[%emt 0:00:00]} a6 {[%emt 0:00:48]} 4. Ba4 {[%emt 0:00:00]} b5 {[%emt 0:00:33]} 5. Bb3 {[%emt 0:00:02]} Bc5 {[%emt 0:00:47]} 6. O-O {[%emt 0:00:30]} Nf6 {[%emt 0:00:31]} 7. c3 {[%emt 0:01:51]} d6 {[%emt 0:00:31]} 8. Re1 {[%emt 0:01:09]} Bb7 {[%emt 0:01:44]} 9. d4 {[%emt 0:00:57]} exd4 {[%emt 0:00:56]} 10. cxd4 {[%emt 0:00:40]} Bb4 {[%emt 0:00:43]} 11. Bd2 {[%emt 0:00:39]} Qe7 {[%emt 0:00:42]} 12. e5 {[%emt 0:03:49]} dxe5 {[%emt 0:00:38]} 13. Nxe5 {[%emt 0:01:19]} O-O {[%emt 0:01:16]} 14. Nxc6 {[%emt 0:00:47]} Qd6 {[%emt 0:00:34]} 15. Nxb4 {[%emt 0:01:31]} a5 {[%emt 0:00:35]} 16. Nd3 {[%emt 0:01:09]} Qc6 {[%emt 0:00:33]} 17. f3 {[%emt 0:01:28]} Qb6 {[%emt 0:00:33]} 18. Be3 {[%emt 0:00:37]} Rfe8 {[%emt 0:00:18]} 19. Nd2 {[%emt 0:01:03]} Qc6 {[%emt 0:00:52]} 20. Ne5 {[%emt 0:03:06]} Qd6 {[%emt 0:01:32]} 21. Bxf7+ {[%emt 0:01:08]} Kh8 {[%emt 0:00:15]} 22. Bxe8 {[%emt 0:00:31]} Rxe8 {[%emt 0:00:10]} 23. Nf7+ {[%emt 0:00:24]} Kg8 {[%emt 0:00:13]} 24. Nxd6 {[%emt 0:00:12]} cxd6 {[%emt 0:00:19]} 25. Rc1 {[%emt 0:00:24]} Nd5 {[%emt 0:00:40]} 26. Qb3 {[%emt 0:00:21]} Kh8 {[%emt 0:00:24]} 27. Bg5 {[%emt 0:01:17]} Rxe1+ {[%emt 0:00:17]} 28. Rxe1 {[%emt 0:00:08]} 1-0